Cogmind - Beta 15 @@@ ROGUE MODE // 2025.05.25 @ 23:20:56 Player: Skysub Result: Destroyed by 3P-3XF(R) with Subdweller Machine Gun Performance ------------- Evolutions (0) 0 Regions Visited (2) 400 Robots Destroyed (18) 90 Value Destroyed (399) 399 Prototype IDs (0) 0 Alien Tech Used (0) 0 Bonus (0) 0 TOTAL SCORE: 889 Bonus ------- None Cogmind --------- Core Integrity 0/250 Matter 236/300 Energy 181/200 System Corruption 0% Temperature Cool (0) Movement Core (300) Ox5 Location -10/Subcaves Parts ------- > --- POWER (1) -------- Subdweller Power Source > --- PROPULSION (2) --- (None) > --- UTILITY (2) ------ Small Storage Unit Structural Scanner > --- WEAPON (2) ------- Subdweller Laser Light Assault Rifle > --- INVENTORY (8) ---- Subdweller Power Source Subdweller Power Source Machine Analyzer Subdweller Optics EM Pulse Gun Dirty Datajack (20) Dirty Datajack (20) Mining Laser Peak State ------------ > --- POWER ------------ Subdweller Power Source > --- PROPULSION ------- Wheel Compact Wheel > --- UTILITY ---------- Small Storage Unit Structural Scanner > --- WEAPON ----------- Subdweller Machine Gun Flamer > --- INVENTORY -------- Subdweller Power Source Machine Analyzer Subdweller Optics EM Pulse Gun Subdweller Laser Light Assault Rifle Dirty Datajack Mining Laser [Rating: 11] Favorites ----------- Power Light Ion Engine Engine Light Ion Engine Propulsion Light Treads Treads Light Treads Wheel Wheel Utility Small Storage Unit Device Structural Scanner Storage Small Storage Unit Weapon Assault Rifle Energy Gun Subdweller Laser Ballistic Gun Assault Rifle Launcher Grenade Launcher Special Weapon Mining Laser Build | -11 -10 -10 ------- Run | Yrd Mat Sub Slots Evolved . | . . . Power . | . . . Propulsion . | . . . Utility . | . . . Weapon . | . . . Parts Attached 19 | 6 2 11 Power 4 | 1 . 3 Engine 4 | 1 . 3 Core . | . . . Reactor . | . . . Propulsion 5 | 2 . 3 Treads 2 | 2 . . Leg . | . . . Wheel 3 | . . 3 Hover . | . . . Flight . | . . . Utility 2 | 1 1 . Device 1 | . 1 . Storage 1 | 1 . . Processor . | . . . Hackware . | . . . Protection . | . . . Artifact . | . . . Weapon 8 | 2 1 5 Energy Gun 1 | . . 1 Energy Cannon . | . . . Ballistic Gun 4 | 2 1 1 Ballistic Cannon . | . . . Launcher 1 | . . 1 Special Weapon 2 | . . 2 Impact Weapon . | . . . Slashing Weapon . | . . . Piercing Weapon . | . . . Special Melee Weapon . | . . . Unidentified Prototypes . | . . . Parts Lost 12 | . 1 11 Power 2 | . . 2 Propulsion 5 | . 1 4 Utility . | . . . Weapon 5 | . . 5 Highest Loss Streak 3 | . 1 3 To Critical Strikes . | . . . Average Backups 5 | 3 6 5 Power . | . 1 . Propulsion 1 | 2 3 . Utility . | . . 1 Weapon 2 | . 2 3 Tool/Special . | . . . Unused Backups 7 | . 2 5 Power 1 | . . 1 Propulsion 2 | . 2 . Utility 2 | . . 2 Weapon 1 | . . 1 Tool/Special 1 | . . 1 Average Slot Usage (%) 89 | . 84 95 Engine 13 | . 14 13 Treads 14 | . 26 2 Wheel 11 | . . 23 Device 7 | . 1 14 Storage 14 | . 14 14 Ballistic Gun 22 | . 28 16 Launcher 1 | . . 3 Special Weapon 2 | . . 4 Peak Build Rating 11 | 6 6 11 Average Rating 6 | 5 5 7 On Entrance 4 | . 6 6 Naked Turns . | . . . Heaviest Build 17 | 11 13 17 Greatest Support 40 | 40 40 26 Greatest Overweight (x) 1 | . . 1 Average Overweight (x) . | . . . Largest Inventory Capacity 8 | 8 8 8 Average Capacity 7 | 7 8 8 Most Carried 8 | 6 8 8 Average Carried 5 | 3 6 5 Final Capacity 8 | 8 8 8 Final Carried 8 | 6 7 8 Class Distribution -------------------- 100% | Mutant Dominant Class ---------------- Mutant | -10/Materials Mutant | -10/Subcaves Resources | -11 -10 -10 ----------- Run | Yrd Mat Sub Matter Collected 683 | 185 147 351 Remotely . | . . . Salvage Created 373 | . 220 153 Parts 31 | . 17 14 Haulers Intercepted . | . . . Recyclers Shooed 1 | . 1 . Parts Field Recycled . | . . . Retrieved Matter . | . . . Parts Self-Destructed 9 | . . 9 Prevented . | . . . Kills | -11 -10 -10 ------- Run | Yrd Mat Sub Combat Hostiles Destroyed 14 | . 4 10 Guns 7 | . 4 3 AOE 7 | . . 7 Classes Destroyed 6 | . 4 2 Worker 2 | . 2 . Builder 1 | . 1 . Operator 1 | . 1 . Swarmer 6 | . . 6 Grunt 5 | . 4 1 Subdweller 3 | . . 3 Best Kill Streak 6 | . 2 6 Combat Bots Only 6 | . 1 6 Max Kills in Single Turn 2 | . 1 2 Gunslinging . | . . . Exploded 2 | . . 2 Melee . | . . . Uniques/NPCs Destroyed . | . . . Combat | -11 -10 -10 -------- Run | Yrd Mat Sub Hostile Shots Fired 155 | . 54 101 Missed 57 | . 15 42 Hits 98 | . 39 59 Projectile 98 | . 39 59 Critical Strikes 5 | . 3 2 Damage Taken 1341 | . 532 809 Core 261 | . 74 187 Absorbed by Shields . | . . . Core Remaining (%) 100 | 100 . . Volleys Fired 79 | . 38 41 Largest 2 | . 2 2 Hottest 130 | . 40 130 Shots Fired 134 | . 76 58 Gun 103 | . 76 27 Cannon . | . . . Launcher 13 | . . 13 Special 18 | . . 18 Kinetic 96 | . 76 20 Thermal 25 | . . 25 Explosive 13 | . . 13 Electromagnetic . | . . . Robot Hit Streak 10 | . 10 9 Robot Miss Streak 4 | . 4 3 Penetration Max . | . . . Secondary Targets . | . . . Shots Hit Robots 74 | . 47 27 Core Hits 31 | . 14 17 Critical Kills . | . . . Critical Parts Destroyed . | . . . Critical Strikes . | . . . Melee Attacks . | . . . Impact . | . . . Slashing . | . . . Piercing . | . . . Sneak Attacks . | . . . Combat Hostiles . | . . . Follow-up Attacks . | . . . Damage Inflicted 1479 | . 575 904 Guns 811 | . 570 241 Cannons . | . . . Explosions 642 | . . 642 Melee . | . . . Ramming 5 | . 5 . Kinetic 750 | . 570 180 Thermal 82 | . . 82 Explosive 642 | . . 642 Electromagnetic . | . . . Impact . | . . . Slashing . | . . . Piercing . | . . . Highest Corruption . | . . . Average Corruption . | . . . Corruption Purged . | . . . Corruption Blocked . | . . . Overload Shots . | . . . Overflow Damage 27 | . . 27 Projectiles . | . . . Explosions 27 | . . 27 Melee . | . . . Knockbacks . | . . . Impact . | . . . Kinetic . | . . . Secondary . | . . . Self-Inflicted Damage . | . . . Shots . | . . . Rammed . | . . . Targets Rammed 1 | . 1 . Kicked . | . . . Crushed 1 | . 1 . Highest Temperature 279 | . 26 279 Average Temperature 28 | . 6 89 Received Heat Transfer 948 | . 357 591 Siege Activations . | . . . Martial Activations . | . . . Shielding Activations . | . . . Robots Disrupted . | . . . Combat Hostiles . | . . . Robots Corrupted . | . . . Combat Hostiles . | . . . Parts Fried . | . . . Impact Corruptions . | . . . Robots Melted . | . . . Combat Hostiles . | . . . Parts Melted . | . . . Heat Transferred 235 | . . 235 Parts Sabotaged . | . . . Parts Stolen . | . . . Parts Stripped . | . . . Power Chain Reactions . | . . . Alert | -11 -10 -10 ------- Run | Yrd Mat Sub Maximum Alert Level . | . . . Low Security (%) 100 | 100 100 . Level 1 . | . . . Level 2 . | . . . Level 3 . | . . . Level 4 . | . . . Level 5 . | . . . High Security . | . . . Max Security . | . . . Peak Influence 93 | . 93 . Initial . | . . . Average 13 | . 16 . Influence Increases 505 | . 190 315 Destroy 0b10 Robot/C 220 | . 80 140 Destroy 0b10 Robot/NC 20 | . 20 . Destroy Leader 40 | . 30 10 Lose Combat Pursuer 225 | . 60 165 Influence Decreases 505 | . 106 399 Entered New Map 41 | . . 41 Time Decay 354 | . 96 258 Lost Part 110 | . 10 100 Squads Dispatched 1 | . 1 . Investigation . | . . . Extermination . | . . . Reinforcement 1 | . 1 . Assault . | . . . Garrison . | . . . Intercept . | . . . Searches Triggered . | . . . Construction Impeded . | . . . Haulers Reinforced . | . . . Active Scanning Responses . | . . . Cargo Convoy Interrupts . | . . . Stealth | -11 -10 -10 --------- Run | Yrd Mat Sub Distress Signals . | . . . Communications Jammed . | . . . Distress Signals . | . . . Times Spotted 35 | . 13 22 Peak Tracking Total 6 | . 4 6 Tactical Retreats 6 | . 3 3 Traps | -11 -10 -10 ------- Run | Yrd Mat Sub Traps Triggered 1 | . . 1 Indirectly . | . . . Trap Hack Attempts . | . . . Triggered . | . . . Disarmed . | . . . Reprogrammed . | . . . Reused . | . . . Traps Extracted . | . . . Installed . | . . . Triggered . | . . . Machines | -11 -10 -10 ---------- Run | Yrd Mat Sub Machines Disabled 3 | . . 3 Max in Single Turn 2 | . . 2 Machines Repaired . | . . . Machines Dismantled . | . . . Machines Sabotaged . | . . . Overloaded Fab Kills . | . . . Hacking | -11 -10 -10 --------- Run | Yrd Mat Sub Machines Accessed 1 | . 1 . Terminals 1 | . 1 . Fabricators . | . . . Repair Stations . | . . . Recycling Units . | . . . Scanalyzers . | . . . Garrison Access . | . . . Total Hacks 5 | . 5 . Successful . | . . . Failed 5 | . 5 . Catastrophic . | . . . Database Lockouts . | . . . Manual 5 | . 5 . Terminals 5 | . 5 . Fabricators . | . . . Repair Stations . | . . . Recycling Units . | . . . Scanalyzers . | . . . Garrison Access . | . . . Terminal Hacks . | . . . Fabricator Hacks . | . . . Repair Station Hacks . | . . . Recycling Unit Hacks . | . . . Scanalyzer . | . . . Garrison Access Hacks . | . . . Unauthorized Hacks . | . . . Terminals . | . . . Fabricators . | . . . Repair Stations . | . . . Recycling Units . | . . . Scanalyzers . | . . . Garrison Access . | . . . Data Cores Recovered . | . . . Used . | . . . Hacking Detections 1 | . 1 . Full Trace Events . | . . . Feedback Events . | . . . Feedback Blocked . | . . . Robot Schematics Acquired . | . . . Robots Built . | . . . Authchips . | . . . Time . | . . . Total Robot Build Rating . | . . . Part Schematics Acquired . | . . . Parts Built . | . . . Authchips . | . . . Time . | . . . Total Part Build Rating . | . . . Parts Repaired . | . . . Time . | . . . Parts Recycled . | . . . Recycled Matter . | . . . Retrieved Matter . | . . . Retrieved Components . | . . . Parts Scanalyzed . | . . . Part Schematics Acquired . | . . . Parts Damaged . | . . . Bothacking | -11 -10 -10 ------------ Run | Yrd Mat Sub Used RIF Installer . | . . . Robots Hacked . | . . . Non-combat . | . . . Combat . | . . . Robot Hacks Applied . | . . . Relay Couplers Released . | . . . Fabnet Peak Effective % . | . . . Robots Rewired . | . . . Allies Hacked . | . . . Hacks Repelled . | . . . Allies | -11 -10 -10 -------- Run | Yrd Mat Sub Total Allies . | . . . Largest Group . | . . . Highest-Rated Group . | . . . Highest-Rated Ally . | . . . Total Orders . | . . . Ally Attacks . | . . . Total Damage . | . . . Kills . | . . . Allies Corrupted . | . . . Allies Melted . | . . . Intel | -11 -10 -10 ------- Run | Yrd Mat Sub Active Infowar (turns) 643 | . 62 581 Structural 643 | . 62 581 Robot Analysis Total . | . . . Derelict Logs Recovered . | . . . Drone Launches . | . . . Drone Recoveries . | . . . Exploration | -11 -10 -10 ------------- Run | Yrd Mat Sub Turns Passed 1328 | 116 631 581 Spaces Moved 843 | 67 307 469 Core 5 | 5 . . Treads 369 | 62 307 . Legs . | . . . Wheels 469 | . . 469 Hover . | . . . Flight . | . . . Fastest Speed 50 | 50 160 80 Average Speed 120 | 151 160 90 Slowest Speed 160 | 160 160 115 Overloaded Moves . | . . . Propulsion Burnouts . | . . . Robots Hopped . | . . . Potential Cave-ins . | . . . Cave-ins Triggered . | . . . Exploration Rate (%) 21 | 5 35 25 Regions Visited 2 Branch Regions 1 Pre-discovered Areas 1 | . . 1 Known Exits Taken . | . . . Unknown Exits Taken 2 | 1 1 . Scrap Searched 4 | . . 4 Spaces Dug 6 | . . 6 Terrain Destroyed 47 | . . 47 Melee . | . . . Projectile 6 | . . 6 AOE 41 | . . 41 Terrain Rammed . | . . . Walls Destroyed . | . . . Machines Disabled . | . . . Actions | -11 -10 -10 --------- Run | Yrd Mat Sub Total 986 | 78 373 535 Wait 22 | . 22 . Move 841 | 66 306 469 Hop . | . . . Pick Up 17 | 6 2 9 Fast Attach 8 | 6 1 1 Attach 9 | . . 9 Detach . | . . . Swap 7 | . 1 6 Drop 2 | . 2 . Fire 79 | . 38 41 Melee . | . . . Ram . | . . . Kick . | . . . Crush 1 | . 1 . Escape Stasis . | . . . Rewire . | . . . Trap . | . . . Miscellaneous . | . . . Route ------- -11/Scrapyard -10/Materials (discovered 2 exits: [*Mat] / [*Sub]) -10/Subcaves (discovered 1 exit: [*Rec]) History --------- Turn | Location | Event 8 | -11/Scrapyard | Discovered new exit (range 15) 117 | -11/Scrapyard | Entered Materials 308 | -10/Materials | Build established: Mutant 390 | -10/Materials | Discovered new exit (range 8) 430 | -10/Materials | Discovered new exit (range 12) 748 | -10/Materials | Entered Subcaves 749 | -10/Subcaves | Approached by a straggling Scientist 835 | -10/Subcaves | Ambushed by Subdweller buried in earth 887 | -10/Subcaves | Discovered new exit (range 10) 1004 | -10/Subcaves | Learned location of Zion (-7) 1004 | -10/Subcaves | Met a Zionite searching for "candidates" 1194 | -10/Subcaves | Shifting Twisted Machinery released Flamer 1287 | -10/Subcaves | Core integrity fell below 50% 1318 | -10/Subcaves | Core integrity fell below 20% 1319 | -10/Subcaves | Lost 3 parts (1n2w) 1329 | -10/Subcaves | Destroyed by 3P-3XF(R) with Subdweller Machine Gun Last Messages --------------- Acquired Dirty Datajack. Subatomizers dissect the Sub. Power Source. Acquired Sub. Power Source. Acquired 37 matter. Subatomizers dissect the Ion Engine. Wheel destroyed. Subatomizers dissect the Ion Engine. K7-U8J(R) destroyed. Flamer destroyed. Sub. Machine Gun destroyed. Critical hit (Meltdown: +270). I0-TEX(R) destroyed. Subatomizers dissect the Ion Engine. Acquired 33 matter. Acquired 30 matter. Acquired Dirty Datajack. Acquired Sub. Power Source. Acquired 8 matter. Subatomizers dissect the Ion Engine. Com. Wheel destroyed. Map ----- +----------------------------------------------------+ | ????????????????????????????????????????????## #" | | ????????????????????????????????????????????### ## | | ????????????????????????????????????????????#### # | | ?????????????????????????????????????????????### # | | ?????????????????????????????????????????????## # | | ?????????????????????????????????????????????## | | ?????????????????????????????????????????????### # | | ?????????????????????????????????????????????### # | | ??????????????????????????????????????????????## # | | ??????????????????????????????????????????????## # | | ??????????????????????????????????????????????## | | ??????????????????????????????????????########### | | ??????????????????????????????????????########### | | ??????????????????????????????????????## "#### # | | ??????????????????????????????????????###"&&&### # | | ??????????????????????????????????????###### ### | | ????????????????????????#####????????#### "### | | ?????????????????##################??##### ##### | | ?????????????????######### #########?## " "#### " | | ????????????????? # # # " #### ###### #### | | ????????????????? " """ ###### # " | | ????????????????????"""""""""" "" ### "" | | ????????????????????"# "#""" #### # | | ????????????????????###" ###" ## ### | | ??????????????????#####" %######&] ### #### | | ????????????????"" #### @ #### # # & ###? | | ??????????????# "" R " & | & ###?? | | ??????????????## """""""R *#######?? | | ??????????????## ?""""" " % #### ######??? | | ???????????????????"#"##" #################??????? | | ???????????????????########################??????? | | ???????????????????#########?????????????????????? | | ?????????????????????????????????????????????????? | | ?????????????????????????????????????????????????? | | ?????????????????????????????????????????????????? | | ?????????????????????????????????????????????????? | | ?????????????????????????????????????????????????? | | ?????????????????????????????????????????????????? | | ?????????????????????????????????????????????????? | | ?????????????????????????????????????????????????? | | ?????????????????????????????????????????????????? | | ?????????????????????????????????????????????????? | | ?????????????????????????????????????????????????? | | ?????????????????????????????????????????????????? | | ?????????????????????????????????????????????????? | | | | | | | | | | | +----------------------------------------------------+ Best States ------------- Heat Dissipation 25 Energy Generation 15 Energy Capacity 250 Matter Stores 235 Matter Capacity 300 Sight Range 16 Terrain Scan Density 10 Evasion (%) 44 Recoil Reduction 2 Item Schematics ----------------- None Robot Schematics ------------------ None Fabricated ------------ Nothing Repaired ---------- Nothing Alien Tech Used ----------------- None Achievements -------------- None Challenges ------------ None Game ------ Seed SuspensionActuatorTerminator Manual? 0 Play Time 00:12:52 Cumulative 99.0 hours Start 2025.05.25 @ 23:09:20 End 2025.05.25 @ 23:20:56 Sessions 1 Manual Loads 0 Difficulty Rogue Special Mode None Game No. 102 Rogue 102 Adventurer 0 Explorer 0 Win Type - Total 2 Types 1/0/0/1/0/0/0/0/0/0 Lore% 54 Gallery% 53 Achievement% 47 Wizard Run 0 Options --------- Layout 1 ASCII 0 Keyboard 1 Movement Arrows Keybinds 0 Fullscreen 1 Font 24/Smallcaps Map View 50x35 Zoom Use 14% Tactical HUD 0 Map Filters NONE Filters NONE Steam 1 RUN: 8abdfc57-39f7-41bc-b73e-2c377a055abc